[Event "Portuguese Chess-ch 2022"]
[Site "Leiria"]
[Date "2022.09.17"]
[Round "7.3"]
[White "Rego, Pedro Filipe"]
[Black "Fidalgo, Andre"]
[Result "1-0"]
[ECO "C54"]
[WhiteElo "2273"]
[BlackElo "2258"]
[Annotator "TA RC"]
[PlyCount "107"]
[EventDate "2022.09.11"]
[EventCountry "POR"]
[SourceTitle "playchess.com"]
[Source "ChessBase"]
[SourceQuality "1"]
[TimeControl "5400+30"]

{[%evp 15,107,11,2,0,4,16,14,13,19,19,20,20,8,0,38,29,18,6,109,66,80,86,81,86,101,99,106,98,91,43,43,44,59,0,38,0,59,46,62,36,41,42,47,43,43,51,84,78,102,113,104,107,114,94,116,0,115,73,88,73,78,69,65,72,89,94,126,126,147,106,107,107,110,100,108,71,80,0,106,105,110,61,71,0,108,107,177,177,928,910,910,880,844,654]} 1. e4 {[%emt 0:00:30]} e5 {[%emt 0:00:09]} 2. Nf3 {[%emt 0:00:14]} Nc6 {[%emt 0:00:20]} 3. Bc4 {[%emt 0:01:37]} Bc5 {[%emt 0:00:14]} 4. c3 {[%emt 0:00:46]} Nf6 {[%emt 0:00:07]} 5. d3 {[%emt 0:01:16]} O-O {[%emt 0:00:09]} 6. O-O {[%emt 0:00:34]} d5 {[%emt 0:00:06]} 7. exd5 {[%emt 0:00:16]} Nxd5 {[%emt 0:00:07]} 8. Re1 {[%emt 0:00:08]} Bg4 {[%emt 0:00:11]} 9. Nbd2 {[%emt 0:00:38] C54: Giuoco Piano: 4 c3 Nf6, main lines with 5 d4 and 5 d3.} Nb6 {[%emt 0:00:29]} 10. h3 {[%emt 0:00:25]} Bh5 {[%emt 0:03:02]} 11. Bb3 {[%emt 0:00:45] The position is equal.} Qxd3 {[%emt 0:02:37]} 12. Nxe5 {[%emt 0:00:40]} Qf5 {[%emt 0:00:12]} 13. Nef3 $1 {[%emt 0:00:14]} ({Wrong is} 13. Ndf3 $2 Nxe5 14. Rxe5 Qxe5 15. Nxe5 Bxd1 16. Bxd1 Rfe8 $19) 13... Rad8 {[%emt 0:06:17]} 14. Qe2 {[%emt 0:00:12] Prevents Rfe8.} Bd6 {[%emt 0:04:28] [#]} (14... Nd5 $5 {[%cal Rd5f4]}) 15. Qf1 $146 {[%emt 0:00:47] [#] Threatens to win with g4.} ({Predecessor:} 15. Nh4 Qg5 16. Ndf3 Qxh4 17. Nxh4 Bxe2 18. Rxe2 Rfe8 19. Rxe8+ Rxe8 20. Be3 g6 21. Nf3 {1-0 (67) Bodnar,N (2438)-Zhuravleva,O (2278) Chess.com INT 2021}) 15... Qc8 {[%emt 0:05:15]} 16. a4 {[%emt 0:01:00]} a5 {[%emt 0:00:39]} (16... Rfe8 $11 {remains equal.}) 17. Qb5 {[%emt 0:04:03]} Bg6 {[%emt 0:02:34]} 18. Ne4 {[%emt 0:02:03]} Rfe8 {[%emt 0:04:47]} 19. Nxd6 {[%emt 0:01:15]} Rxe1+ {[%emt 0:07:11]} 20. Nxe1 {[%emt 0:00:13]} Rxd6 {[%emt 0:00:08]} 21. Be3 {[%emt 0:04:21]} Qd8 {[%emt 0:04:47]} 22. Nf3 {[%emt 0:03:04]} ({White should try} 22. Bg5 $16 Qc8 23. Nf3) 22... Bd3 $14 {[%emt 0:01:29]} 23. Qh5 {[%emt 0:03:31]} Bg6 {[%emt 0:01:29]} 24. Qb5 {[%emt 0:03:38]} Bd3 $1 {[%emt 0:00:08]} 25. Qh5 {[%emt 0:00:09]} (25. Qg5 $5 {[%cal Re3f4]}) 25... Bg6 {[%emt 0:00:05]} 26. Qg4 {[%emt 0:08:30]} Nd5 {[%emt 0:03:41]} 27. Bc5 {[%emt 0:00:45]} (27. Bg5 $5 {[%cal Rg5d8]} Qd7 28. Qxd7 Rxd7 29. Rd1 $14) 27... Nf6 {[%emt 0:01:05]} 28. Qc4 {[%emt 0:10:33]} Rd7 {[%emt 0:03:46]} 29. Re1 $36 {[%emt 0:02:07][%mdl 2048] Inhibits Be4. Black is under pressure.} h6 {[%emt 0:08:49]} 30. Qb5 {[%emt 0:04:03]} Ne4 {[%emt 0:00:59]} 31. Ba3 {[%emt 0:09:29] This bishop pair is nice.} Nd6 {[%emt 0:20:15]} 32. Bxd6 {[%emt 0:00:36]} cxd6 {[%emt 0:00:31]} 33. Bd5 {[%emt 0:00:20]} Na7 {[%emt 0:03:18]} 34. Qb3 {[%emt 0:01:30] White is much more active. The black rooks are badly placed.} Nc6 {[%emt 0:01:09]} 35. Qb5 {[%emt 0:04:36]} Na7 $1 {[%emt 0:00:06]} 36. Qc4 {[%emt 0:00:22]} Nc8 {[%emt 0:01:46]} 37. Qb3 {[%emt 0:00:03]} Nb6 {[%emt 0:03:44]} 38. Be4 {[%emt 0:08:09]} Bxe4 {[%emt 0:00:47]} 39. Rxe4 {[%emt 0:00:07][%cal Be1e4,Be4d4,Bd4d1][%mdl 32]} d5 {[%emt 0:00:40]} 40. Rd4 {[%emt 0:00:00]} Nc4 {[%emt 0:00:00]} 41. Qb5 {[%emt 0:00:00]} f6 {[%emt 0:00:00]} 42. Nh4 {[%emt 0:00:00]} Ne5 {[%emt 0:00:00]} 43. Nf5 {[%emt 0:00:00]} Nc6 {[%emt 0:00:00]} 44. Rd1 {[%emt 0:00:00]} Kh8 {[%emt 0:00:00]} 45. Qd3 {[%emt 0:00:00] Inhibits d4.} Ne5 {[%emt 0:00:00]} 46. Qb5 {[%emt 0:00:00]} Nc6 $1 {[%emt 0:00:00]} 47. Nd4 {[%emt 0:02:13]} Qc7 {[%emt 0:04:39]} 48. Ne2 {[%emt 0:03:18]} (48. g3 $16) 48... Qe5 {[%emt 0:01:08]} 49. Nd4 {[%emt 0:01:52]} Qc7 $1 {[%emt 0:06:42]} 50. g3 {[%emt 0:01:19]} Rd6 {[%emt 0:02:14]} (50... Na7 $16 51. Qd3 Nc6) 51. Nf5 $18 {[%emt 0:00:47][%csl LRd5,LRd6]} Na7 $2 {[%emt 0:01:38] [#]} (51... Rd7 52. Rxd5 Qd8 53. Rxd7 Qxd7) 52. Qe8+ {[%emt 0:00:11] White is clearly winning.} Kh7 {[%emt 0:01:06]} 53. Nxd6 {[%emt 0:01:32]} Qxd6 {[%emt 0:00:03]} 54. c4 {[%emt 0:00:11] Weighted Error Value: White=0.16 (very precise) /Black=0.10 (very precise)} 1-0

[Event "Portuguese Chess-ch 2022"]
[Site "Leiria"]
[Date "2022.09.17"]
[Round "7.4"]
[White "Rocha, Sergio"]
[Black "Fernandes, Antonio"]
[Result "1/2-1/2"]
[ECO "A48"]
[WhiteElo "2324"]
[BlackElo "2327"]
[Annotator "ChessBase"]
[PlyCount "281"]
[EventDate "2022.09.11"]
[EventCountry "POR"]
[SourceTitle "playchess.com"]
[Source "ChessBase"]
[SourceQuality "1"]
[TimeControl "5400+30"]

1. Nf3 {[%emt 0:01:05]} Nf6 {[%emt 0:04:27]} 2. d4 {[%emt 0:00:09]} g6 {[%emt 0:02:39]} 3. c4 {[%emt 0:00:10]} Bg7 {[%emt 0:00:32]} 4. Nc3 {[%emt 0:00:07]} d6 {[%emt 0:00:18]} 5. e4 {[%emt 0:00:15]} Bg4 {[%emt 0:00:16]} 6. Be2 {[%emt 0:00:16]} O-O {[%emt 0:00:39]} 7. Bg5 {[%emt 0:03:52]} Nfd7 {[%emt 0:05:58]} 8. Ng1 {[%emt 0:02:33]} Bxe2 {[%emt 0:07:39]} 9. Ngxe2 {[%emt 0:00:32]} a6 {[%emt 0:00:14]} 10. a4 {[%emt 0:04:37]} Nc6 {[%emt 0:01:11]} 11. O-O {[%emt 0:00:54]} Nb4 {[%emt 0:01:51]} 12. Qd2 {[%emt 0:03:46]} c6 {[%emt 0:01:43]} 13. Nd1 {[%emt 0:06:35]} a5 {[%emt 0:05:14]} 14. Ne3 {[%emt 0:01:43]} Nf6 {[%emt 0:08:06]} 15. Nc3 {[%emt 0:01:29]} h6 {[%emt 0:00:34]} 16. Bh4 {[%emt 0:00:12]} e5 {[%emt 0:01:30]} 17. d5 {[%emt 0:00:32]} Nxe4 {[%emt 0:08:34]} 18. Nxe4 {[%emt 0:00:09]} Qxh4 {[%emt 0:00:03]} 19. Nxd6 {[%emt 0:00:36]} Rab8 {[%emt 0:15:53]} 20. c5 {[%emt 0:04:25]} Qd4 {[%emt 0:01:47]} 21. Qxd4 {[%emt 0:03:08]} exd4 {[%emt 0:00:02]} 22. Nec4 {[%emt 0:00:11]} cxd5 {[%emt 0:01:08]} 23. Nxa5 {[%emt 0:01:00]} b6 {[%emt 0:00:06]} 24. Nab7 {[%emt 0:09:52]} bxc5 {[%emt 0:04:18]} 25. Nxc5 {[%emt 0:00:18]} Rb6 {[%emt 0:04:57]} 26. Nb5 {[%emt 0:01:19]} Rc8 {[%emt 0:00:35]} 27. Rac1 {[%emt 0:11:29]} Na2 {[%emt 0:07:05]} 28. Nd7 {[%emt 0:04:07]} Rxc1 {[%emt 0:03:28]} 29. Nxb6 {[%emt 0:01:02]} Rc5 {[%emt 0:04:31]} 30. Rd1 {[%emt 0:04:28]} d3 {[%emt 0:00:44]} 31. Kf1 {[%emt 0:09:15]} Nb4 {[%emt 0:00:11]} 32. b3 {[%emt 0:01:33]} Rc2 {[%emt 0:00:58]} 33. Nd7 {[%emt 0:00:43]} h5 {[%emt 0:04:33]} 34. f4 {[%emt 0:03:20]} h4 {[%emt 0:01:02]} 35. h3 {[%emt 0:00:27]} f6 {[%emt 0:04:16]} 36. f5 {[%emt 0:02:17]} Kf7 {[%emt 0:00:51]} 37. Nd4 {[%emt 0:01:22]} Rc7 {[%emt 0:00:09]} 38. Nb6 {[%emt 0:02:15]} Bh6 {[%emt 0:00:11]} 39. Kf2 {[%emt 0:06:29]} gxf5 {[%emt 0:01:14]} 40. Kf3 {[%emt 0:00:00]} Kg6 {[%emt 0:00:00]} 41. a5 {[%emt 0:00:00]} Ra7 {[%emt 0:00:00]} 42. Nc8 {[%emt 0:00:00]} Rxa5 {[%emt 0:00:00]} 43. Ne7+ {[%emt 0:00:00]} Kf7 {[%emt 0:00:00]} 44. Nexf5 {[%emt 0:00:00]} Bg5 {[%emt 0:00:00]} 45. g3 {[%emt 0:00:00]} Nc2 {[%emt 0:00:00]} 46. gxh4 {[%emt 0:00:00]} Nxd4+ {[%emt 0:00:00]} 47. Nxd4 {[%emt 0:00:00]} Bxh4 {[%emt 0:00:00]} 48. Rxd3 {[%emt 0:00:00]} Ra2 {[%emt 0:00:00]} 49. Nf5 {[%emt 0:00:00]} Rf2+ {[%emt 0:00:00]} 50. Kg4 {[%emt 0:00:00]} Bg5 {[%emt 0:00:00]} 51. Nd4 {[%emt 0:00:00]} Rg2+ {[%emt 0:01:48]} 52. Kf5 {[%emt 0:00:00]} Rf2+ {[%emt 0:04:25]} 53. Nf3 {[%emt 0:06:39]} Ke7 {[%emt 0:00:01]} 54. Kg6 {[%emt 0:03:01]} Bc1 {[%emt 0:00:41]} 55. Kf5 {[%emt 0:01:44]} Bg5 {[%emt 0:00:22]} 56. b4 {[%emt 0:02:00]} Rb2 {[%emt 0:00:18]} 57. h4 {[%emt 0:00:30]} Bxh4 {[%emt 0:00:28]} 58. Nxh4 {[%emt 0:00:09]} Rxb4 {[%emt 0:00:04]} 59. Ng6+ {[%emt 0:00:09]} Kd6 {[%emt 0:00:08]} 60. Kxf6 {[%emt 0:00:22]} Kc5 {[%emt 0:00:55]} 61. Ne5 {[%emt 0:00:45]} Rf4+ {[%emt 0:01:40]} 62. Ke6 {[%emt 0:00:06]} d4 {[%emt 0:00:12]} 63. Rd1 {[%emt 0:00:43]} Rh4 {[%emt 0:00:21]} 64. Rc1+ {[%emt 0:00:15]} Kb4 {[%emt 0:00:34]} 65. Nd3+ {[%emt 0:00:41]} Kb3 {[%emt 0:00:19]} 66. Ke5 {[%emt 0:04:23]} Rg4 {[%emt 0:00:14]} 67. Rc8 {[%emt 0:00:53]} Rh4 {[%emt 0:00:07]} 68. Kf5 {[%emt 0:00:59]} Rh3 {[%emt 0:00:23]} 69. Ke4 {[%emt 0:00:07]} Rh4+ {[%emt 0:00:09]} 70. Kd5 {[%emt 0:00:45]} Rg4 {[%emt 0:00:10]} 71. Rc7 {[%emt 0:02:01]} Rh4 {[%emt 0:00:04]} 72. Rc6 {[%emt 0:00:42]} Rg4 {[%emt 0:00:07]} 73. Nc5+ {[%emt 0:00:13]} Kb2 {[%emt 0:00:09]} 74. Kc4 {[%emt 0:00:19]} Kc2 {[%emt 0:00:22]} 75. Nd3 {[%emt 0:00:16]} Rg8 {[%emt 0:00:36]} 76. Rc7 {[%emt 0:00:27]} Rd8 {[%emt 0:00:10]} 77. Nb4+ {[%emt 0:00:39]} Kd2 {[%emt 0:00:04]} 78. Rh7 {[%emt 0:01:28]} d3 {[%emt 0:00:34]} 79. Rh2+ {[%emt 0:00:12]} Ke3 {[%emt 0:00:09]} 80. Rh3+ {[%emt 0:00:20]} Ke2 {[%emt 0:00:02]} 81. Nxd3 {[%emt 0:00:11]} Rc8+ {[%emt 0:00:08]} 82. Kd4 {[%emt 0:00:24]} Rd8+ {[%emt 0:00:10]} 83. Ke4 {[%emt 0:00:11]} Re8+ {[%emt 0:00:02]} 84. Ne5 {[%emt 0:00:06]} Kd2 {[%emt 0:00:09]} 85. Rd3+ {[%emt 0:00:12]} Kc2 {[%emt 0:00:05]} 86. Rd7 {[%emt 0:00:06]} Kc3 {[%emt 0:00:17]} 87. Rd5 {[%emt 0:00:06]} Rc8 {[%emt 0:00:47]} 88. Ke3 {[%emt 0:00:09]} Re8 {[%emt 0:00:37]} 89. Rc5+ {[%emt 0:01:20]} Kb4 {[%emt 0:00:04]} 90. Rc4+ {[%emt 0:00:18]} Kb3 {[%emt 0:02:26]} 91. Re4 {[%emt 0:00:09]} Kc3 {[%emt 0:00:13]} 92. Rc4+ {[%emt 0:00:33]} Kb3 {[%emt 0:00:05]} 93. Rc5 {[%emt 0:00:05]} Kb4 {[%emt 0:00:12]} 94. Rd5 {[%emt 0:00:05]} Kc3 {[%emt 0:00:17]} 95. Ke4 {[%emt 0:00:17]} Rc8 {[%emt 0:00:36]} 96. Rd3+ {[%emt 0:00:22]} Kb4 {[%emt 0:00:14]} 97. Nf7 {[%emt 0:00:42]} Rc7 {[%emt 0:01:00]} 98. Nd6 {[%emt 0:00:10]} Rh7 {[%emt 0:00:39]} 99. Nf5 {[%emt 0:00:24]} Rc7 {[%emt 0:00:25]} 100. Ne3 {[%emt 0:00:13]} Rh7 {[%emt 0:00:32]} 101. Nc2+ {[%emt 0:01:49]} Kc4 {[%emt 0:01:34]} 102. Ne3+ {[%emt 0:00:19]} Kb4 {[%emt 0:00:56]} 103. Nd5+ {[%emt 0:00:09]} Kb5 {[%emt 0:00:25]} 104. Rb3+ {[%emt 0:00:26]} Kc4 {[%emt 0:00:08]} 105. Rc3+ {[%emt 0:00:22]} Kb5 {[%emt 0:00:01]} 106. Nf4 {[%emt 0:00:34]} Kb4 {[%emt 0:00:30]} 107. Rc8 {[%emt 0:00:13]} Kb5 {[%emt 0:01:05]} 108. Nd3 {[%emt 0:00:13]} Rh4+ {[%emt 0:00:25]} 109. Kd5 {[%emt 0:00:07]} Rh5+ {[%emt 0:00:05]} 110. Ne5 {[%emt 0:00:06]} Kb4 {[%emt 0:00:07]} 111. Rc4+ {[%emt 0:00:08]} Kb3 {[%emt 0:00:10]} 112. Re4 {[%emt 0:00:07]} Kc3 {[%emt 0:00:24]} 113. Kc5 {[%emt 0:00:13]} Rh3 {[%emt 0:01:07]} 114. Rg4 {[%emt 0:00:43]} Re3 {[%emt 0:01:43]} 115. Nd7 {[%emt 0:00:28]} Rh3 {[%emt 0:00:28]} 116. Nf6 {[%emt 0:00:11]} Kd3 {[%emt 0:00:32]} 117. Ra4 {[%emt 0:01:19]} Rh8 {[%emt 0:00:19]} 118. Ra3+ {[%emt 0:00:06]} Ke2 {[%emt 0:00:18]} 119. Ng4 {[%emt 0:00:21]} Rh5+ {[%emt 0:02:50]} 120. Kd4 {[%emt 0:00:09]} Rh4 {[%emt 0:02:08]} 121. Rg3 {[%emt 0:00:08]} Rh8 {[%emt 0:00:18]} 122. Rg1 {[%emt 0:04:24]} Rd8+ {[%emt 0:00:28]} 123. Ke4 {[%emt 0:00:06]} Kd2 {[%emt 0:00:37]} 124. Rg3 {[%emt 0:00:25]} Re8+ {[%emt 0:00:20]} 125. Ne5 {[%emt 0:00:06]} Kc2 {[%emt 0:00:06]} 126. Rg6 {[%emt 0:00:25]} Kc3 {[%emt 0:00:25]} 127. Rd6 {[%emt 0:00:24]} Rc8 {[%emt 0:00:34]} 128. Ke3 {[%emt 0:00:10]} Re8 {[%emt 0:00:34]} 129. Rd5 {[%emt 0:00:47]} Rc8 {[%emt 0:00:38]} 130. Rd7 {[%emt 0:00:10]} Re8 {[%emt 0:00:30]} 131. Rc7+ {[%emt 0:00:05]} Kb4 {[%emt 0:00:12]} 132. Kd4 {[%emt 0:00:04]} Rd8+ {[%emt 0:00:12]} 133. Nd7 {[%emt 0:00:05]} Kb3 {[%emt 0:00:15]} 134. Rb7+ {[%emt 0:00:14]} Kc2 {[%emt 0:00:06]} 135. Kc4 {[%emt 0:00:08]} Kd2 {[%emt 0:00:21]} 136. Nf6 {[%emt 0:00:14]} Rc8+ {[%emt 0:00:15]} 137. Kd4 {[%emt 0:00:04]} Ke2 {[%emt 0:00:26]} 138. Ng4 {[%emt 0:00:08]} Rd8+ {[%emt 0:00:11]} 139. Ke4 {[%emt 0:00:05]} Kd2 {[%emt 0:00:12]} 140. Rc7 {[%emt 0:00:12]} Re8+ {[%emt 0:01:00]} 141. Ne5 {[%emt 0:00:08]} 1/2-1/2

[Event "Portuguese Chess-ch 2022"]
[Site "Leiria"]
[Date "2022.09.18"]
[Round "8.1"]
[White "Fidalgo, Andre"]
[Black "Rocha, Sergio"]
[Result "0-1"]
[ECO "B12"]
[WhiteElo "2258"]
[BlackElo "2324"]
[Annotator "ChessBase"]
[PlyCount "94"]
[EventDate "2022.09.11"]
[EventCountry "POR"]
[SourceTitle "playchess.com"]
[Source "ChessBase"]
[SourceQuality "1"]
[TimeControl "5400+30"]

1. e4 {[%emt 0:00:04]} c6 {[%emt 0:00:15]} 2. d4 {[%emt 0:00:08]} d5 {[%emt 0:00:06]} 3. e5 {[%emt 0:00:05]} c5 {[%emt 0:00:22]} 4. Nf3 {[%emt 0:00:07]} Bg4 {[%emt 0:01:16]} 5. dxc5 {[%emt 0:00:12]} e6 {[%emt 0:00:21]} 6. Bb5+ {[%emt 0:00:19]} Nc6 {[%emt 0:00:07]} 7. b4 {[%emt 0:00:25]} Qc7 {[%emt 0:00:49]} 8. Bxc6+ {[%emt 0:14:10]} Qxc6 {[%emt 0:00:15]} 9. O-O {[%emt 0:01:02]} Ne7 {[%emt 0:03:06]} 10. c3 {[%emt 0:06:39]} Qc7 {[%emt 0:00:18]} 11. Na3 {[%emt 0:02:23]} a6 {[%emt 0:01:07]} 12. Re1 {[%emt 0:02:59]} Nc6 {[%emt 0:00:09]} 13. Qa4 {[%emt 0:13:00]} Bxf3 {[%emt 0:04:13]} 14. gxf3 {[%emt 0:00:30]} Be7 {[%emt 0:18:54]} 15. f4 {[%emt 0:03:35]} O-O {[%emt 0:05:19]} 16. Qd1 {[%emt 0:02:39]} f6 {[%emt 0:04:21]} 17. Qg4 {[%emt 0:01:05]} fxe5 {[%emt 0:03:45]} 18. Qxe6+ {[%emt 0:06:16]} Kh8 {[%emt 0:00:28]} 19. fxe5 {[%emt 0:00:06]} Bh4 {[%emt 0:01:36]} 20. Re2 {[%emt 0:13:47]} Rae8 {[%emt 0:02:46]} 21. Qh3 {[%emt 0:05:13]} Rxe5 {[%emt 0:06:43]} 22. Be3 {[%emt 0:01:26]} Rh5 {[%emt 0:02:23]} 23. Kh1 {[%emt 0:05:43]} Qe5 {[%emt 0:02:43]} 24. Qg4 {[%emt 0:01:27]} Bf6 {[%emt 0:09:27]} 25. Bf4 {[%emt 0:01:09]} Qxc3 {[%emt 0:02:41]} 26. Rc1 {[%emt 0:00:26]} Qh3 {[%emt 0:01:42]} 27. Qxh3 {[%emt 0:00:14]} Rxh3 {[%emt 0:00:06]} 28. Bd6 {[%emt 0:00:51]} Rd8 {[%emt 0:02:17]} 29. Nc2 {[%emt 0:03:18]} d4 {[%emt 0:00:13]} 30. Rd2 {[%emt 0:00:37]} Rc3 {[%emt 0:02:12]} 31. Rcd1 {[%emt 0:00:23]} Kg8 {[%emt 0:00:56]} 32. a4 {[%emt 0:00:56]} Rb3 {[%emt 0:01:16]} 33. f4 {[%emt 0:01:50]} Rb2 {[%emt 0:02:52]} 34. Ne1 {[%emt 0:11:30]} Rxb4 {[%emt 0:01:43]} 35. Nd3 {[%emt 0:00:05]} Rb3 {[%emt 0:11:22]} 36. Ne5 {[%emt 0:00:21]} Bxe5 {[%emt 0:00:14]} 37. fxe5 {[%emt 0:00:07]} Kf7 {[%emt 0:00:11]} 38. Rg2 {[%emt 0:00:57]} Rd7 {[%emt 0:00:46]} 39. Rdg1 {[%emt 0:03:22]} Ke6 {[%emt 0:00:11]} 40. Rd2 {[%emt 0:00:00]} Rf7 {[%emt 0:00:00]} 41. Re1 {[%emt 0:00:00]} Ra3 {[%emt 0:00:00]} 42. Rb1 {[%emt 0:00:00]} Rxa4 {[%emt 0:00:00]} 43. Rdb2 {[%emt 0:00:00]} d3 {[%emt 0:00:00]} 44. Rb3 {[%emt 0:00:00]} Rd4 {[%emt 0:00:00]} 45. Rd1 {[%emt 0:00:00]} d2 {[%emt 0:00:00]} 46. Kg2 {[%emt 0:00:00]} Na5 {[%emt 0:00:00]} 47. Rc3 {[%emt 0:00:00]} Nc4 {[%emt 0:00:00]} 0-1

[Event "Portuguese Chess-ch 2022"]
[Site "Leiria"]
[Date "2022.09.18"]
[Round "8.2"]
[White "Martins, Bruno Andre Leite"]
[Black "Rego, Pedro Filipe"]
[Result "1-0"]
[ECO "B10"]
[WhiteElo "2308"]
[BlackElo "2273"]
[Annotator "ChessBase"]
[PlyCount "139"]
[EventDate "2022.09.11"]
[EventCountry "POR"]
[SourceTitle "playchess.com"]
[Source "ChessBase"]
[SourceQuality "1"]
[TimeControl "5400+30"]

1. e4 {[%emt 0:03:58]} c6 {[%emt 0:00:07]} 2. d3 {[%emt 0:02:41]} d5 {[%emt 0:00:08]} 3. Nd2 {[%emt 0:00:19]} e5 {[%emt 0:00:05]} 4. Ngf3 {[%emt 0:00:05]} Bd6 {[%emt 0:00:06]} 5. d4 {[%emt 0:00:18]} exd4 {[%emt 0:00:26]} 6. exd5 {[%emt 0:00:11]} cxd5 {[%emt 0:00:20]} 7. Nb3 {[%emt 0:01:42]} Nc6 {[%emt 0:01:50]} 8. Be2 {[%emt 0:05:17]} Nf6 {[%emt 0:01:15]} 9. O-O {[%emt 0:00:15]} O-O {[%emt 0:00:12]} 10. Bg5 {[%emt 0:07:02]} h6 {[%emt 0:02:05]} 11. Bh4 {[%emt 0:00:33]} Re8 {[%emt 0:00:55]} 12. Nfxd4 {[%emt 0:09:01]} Bd7 {[%emt 0:15:36]} 13. c3 {[%emt 0:05:36]} Ne5 {[%emt 0:05:29]} 14. Re1 {[%emt 0:10:44]} Ng6 {[%emt 0:02:59]} 15. Bg3 {[%emt 0:00:42]} Nf4 {[%emt 0:00:27]} 16. Bb5 {[%emt 0:06:06]} Bxb5 {[%emt 0:13:53]} 17. Nxb5 {[%emt 0:00:36]} Bb8 {[%emt 0:00:03]} 18. Qf3 {[%emt 0:01:50]} Qd7 {[%emt 0:10:42]} 19. N5d4 {[%emt 0:03:45]} Ng6 {[%emt 0:00:31]} 20. Nc5 {[%emt 0:06:10]} Qc8 {[%emt 0:07:00]} 21. Rxe8+ {[%emt 0:03:16]} Qxe8 {[%emt 0:00:19]} 22. Nd3 {[%emt 0:03:43]} Bxg3 {[%emt 0:00:56]} 23. hxg3 {[%emt 0:00:36]} Qd7 {[%emt 0:02:56]} 24. Nf5 {[%emt 0:03:38]} Kh7 {[%emt 0:02:26]} 25. Rd1 {[%emt 0:04:59]} Rd8 {[%emt 0:00:57]} 26. Ne3 {[%emt 0:01:19]} Qa4 {[%emt 0:14:45]} 27. a3 {[%emt 0:02:59]} Qb3 {[%emt 0:00:49]} 28. Nf5 {[%emt 0:05:53]} Re8 {[%emt 0:01:40]} 29. Nd4 {[%emt 0:01:41]} Qb6 {[%emt 0:01:06]} 30. Qf5 {[%emt 0:03:57]} Kg8 {[%emt 0:00:39]} 31. Nb4 {[%emt 0:02:15]} a6 {[%emt 0:02:35]} 32. Qb1 {[%emt 0:00:38]} a5 {[%emt 0:01:32]} 33. Nd3 {[%emt 0:00:56]} Ne4 {[%emt 0:00:22]} 34. Re1 {[%emt 0:00:22]} Re7 {[%emt 0:00:30]} 35. Qa2 {[%emt 0:00:55]} Qa6 {[%emt 0:01:44]} 36. Rd1 {[%emt 0:02:18]} Nf6 {[%emt 0:01:17]} 37. Qb1 {[%emt 0:01:08]} Re8 {[%emt 0:00:32]} 38. Qc2 {[%emt 0:00:15]} Qc4 {[%emt 0:00:51]} 39. Nb3 {[%emt 0:01:34]} b6 {[%emt 0:01:08]} 40. Nd4 {[%emt 0:00:00]} Ne5 {[%emt 0:00:00]} 41. Nf4 {[%emt 0:00:00]} g6 {[%emt 0:00:00]} 42. Re1 {[%emt 0:00:00]} Qc8 {[%emt 0:00:00]} 43. a4 {[%emt 0:00:00]} Neg4 {[%emt 0:00:00]} 44. Qd1 {[%emt 0:00:00]} Re5 {[%emt 0:00:00]} 45. f3 {[%emt 0:00:00]} Ne3 {[%emt 0:00:00]} 46. Qc1 {[%emt 0:00:00]} Nc4 {[%emt 0:00:00]} 47. b3 {[%emt 0:00:00]} Qe8 {[%emt 0:00:00]} 48. Rxe5 {[%emt 0:00:00]} Nxe5 {[%emt 0:00:00]} 49. Qe3 {[%emt 0:00:00]} Qb8 {[%emt 0:01:13]} 50. Nb5 {[%emt 0:02:41]} h5 {[%emt 0:00:43]} 51. Qd4 {[%emt 0:00:27]} Ned7 {[%emt 0:08:26]} 52. Nxd5 {[%emt 0:01:00]} Nxd5 {[%emt 0:01:07]} 53. Qxd5 {[%emt 0:00:09]} Qe8 {[%emt 0:02:03]} 54. Nd6 {[%emt 0:01:12]} Qe1+ {[%emt 0:00:04]} 55. Kh2 {[%emt 0:00:16]} Ne5 {[%emt 0:00:00]} 56. Ne4 {[%emt 0:00:51]} Nxf3+ {[%emt 0:00:58]} 57. gxf3 {[%emt 0:00:02]} Qe2+ {[%emt 0:00:08]} 58. Kg1 {[%emt 0:00:16]} Qxf3 {[%emt 0:00:13]} 59. Qd8+ {[%emt 0:02:23]} Kg7 {[%emt 0:00:22]} 60. Qd4+ {[%emt 0:00:09]} Kg8 {[%emt 0:00:26]} 61. b4 {[%emt 0:01:19]} h4 {[%emt 0:01:04]} 62. gxh4 {[%emt 0:00:24]} axb4 {[%emt 0:00:03]} 63. cxb4 {[%emt 0:00:18]} Qg4+ {[%emt 0:00:01]} 64. Kf1 {[%emt 0:00:32]} Qh3+ {[%emt 0:00:19]} 65. Ke2 {[%emt 0:00:15]} f5 {[%emt 0:00:54]} 66. Qd8+ {[%emt 0:00:42]} Kg7 {[%emt 0:00:10]} 67. Qe7+ {[%emt 0:00:11]} Kh6 {[%emt 0:00:16]} 68. Qf8+ {[%emt 0:00:07]} Kh5 {[%emt 0:00:04]} 69. Qh8+ {[%emt 0:00:05]} Kg4 {[%emt 0:00:07]} 70. Nf2+ {[%emt 0:00:04]} 1-0